Cogmind - Beta 12 @@@ ROGUE MODE // 2023.11.03 @ 19:10:05 Player: Ciaphas Result: Self-destructed Performance ------------- Evolutions (2) 1000 Regions Visited (5) 1000 Robots Destroyed (33) 165 Value Destroyed (731) 731 Prototype IDs (1) 20 Alien Tech Used (0) 0 Bonus (598) 598 TOTAL SCORE: 3514 Bonus ------- Follower Combat Kills 298 Aligned with FarCom 300 Cogmind --------- Core Integrity 550/550 Matter 300/300 Energy 160/160 System Corruption 0% Temperature Cool (0) Movement Treading (320) Ox2 Location -8/Materials Parts ------- > --- POWER (1) -------- Light Nuclear Core > --- PROPULSION (2) --- Light Treads Light Treads > --- UTILITY (6) ------ Army-in-a-Box (0/30) > --- WEAPON (2) ------- Beam Rifle Beam Rifle > --- INVENTORY (5) ---- Large Storage Unit Advanced Weight Redist. System Rocket Launcher Datajack Mining Laser Peak State ------------ > --- POWER ------------ Light Nuclear Core > --- PROPULSION ------- Light Treads Light Treads > --- UTILITY ---------- Army-in-a-Box > --- WEAPON ----------- Beam Rifle Beam Rifle > --- INVENTORY -------- Large Storage Unit Advanced Weight Redist. System Rocket Launcher Datajack Mining Laser [Rating: 63] Favorites ----------- Power Ion Engine Engine Ion Engine Power Core Light Nuclear Core Propulsion Light Treads Treads Light Treads Leg Aluminum Leg Wheel Wheel Utility Large Storage Unit Device Improved Terrain Scanner Storage Large Storage Unit Processor Targeting Computer Protection Light Armor Plating Weapon Beam Rifle Energy Gun Beam Rifle Ballistic Gun Assault Rifle Launcher Rocket Launcher Special Weapon Mining Laser Special Melee Weapon Datajack Build | -11 -10 -10 -10 -9 -8 ------- Run | Jun Mat Min Exi Min Mat Slots Evolved 4 | . . . . . 4 Power . | . . . . . . Propulsion . | . . . . . . Utility 4 | . . . . . 4 Weapon . | . . . . . . Parts Attached 56 | 7 33 7 . 4 5 Power 6 | . 3 1 . . 2 Engine 5 | . 3 1 . . 1 Core 1 | . . . . . 1 Reactor . | . . . . . . Propulsion 8 | 3 2 1 . . 2 Treads 5 | 1 1 1 . . 2 Leg . | . . . . . . Wheel 3 | 2 1 . . . . Hover . | . . . . . . Flight . | . . . . . . Utility 17 | 1 13 1 . 1 1 Device 12 | 1 8 1 . 1 1 Storage 2 | . 2 . . . . Processor 1 | . 1 . . . . Hackware . | . . . . . . Protection 2 | . 2 . . . . Artifact . | . . . . . . Weapon 25 | 3 15 4 . 3 . Energy Gun 10 | . 6 2 . 2 . Energy Cannon . | . . . . . . Ballistic Gun 5 | 2 3 . . . . Ballistic Cannon . | . . . . . . Launcher 3 | . . 2 . 1 . Special Weapon 5 | 1 4 . . . . Impact Weapon . | . . . . . . Slashing Weapon . | . . . . . . Piercing Weapon . | . . . . . . Special Melee Weapon 2 | . 2 . . . . Unidentified Prototypes 1 | . . . . . 1 Parts Lost 4 | . 2 . . 2 . Power 2 | . 2 . . . . Propulsion . | . . . . . . Utility 1 | . . . . 1 . Weapon 1 | . . . . 1 . Highest Loss Streak 2 | . 2 . . 2 . To Critical Strikes . | . . . . . . Average Slot Usage (%) 86 | . 97 100 72 100 54 Engine 12 | . 11 14 14 14 8 Treads 13 | . 14 14 14 14 10 Wheel 13 | . 14 14 14 14 7 Device 12 | . 12 14 14 14 9 Storage 11 | . 14 14 14 14 . Energy Gun 14 | . 9 27 1 28 18 Ballistic Gun 4 | . 13 . . . . Special Weapon 1 | . 5 . . . . Naked Turns . | . . . . . . Heaviest Build 91 | 14 32 32 30 30 91 Greatest Support 40 | 20 20 20 10 20 40 Greatest Overweight (x) 9 | 1 3 3 2 2 9 Average Overweight (x) 2 | . 2 1 2 1 8 Largest Inventory Capacity 15 | 8 15 15 15 15 5 Average Capacity 13 | 8 14 15 15 15 5 Most Carried 15 | 8 15 12 15 14 5 Average Carried 9 | 5 9 11 14 11 3 Final Capacity 15 | 8 15 15 15 15 5 Final Carried 15 | 5 11 12 15 12 5 Class Distribution -------------------- 96% | Mutant 3% | Scavenger-Mutant Dominant Class ---------------- Mutant | -10/Materials Mutant | -10/Mines Mutant | -10/Exiles Mutant | -9/Mines Mutant | -8/Materials Resources | -11 -10 -10 -10 -9 -8 ----------- Run | Jun Mat Min Exi Min Mat Matter Collected 1052 | 290 427 120 103 62 50 Remotely . | . . . . . . Salvage Created 999 | 124 611 192 . 72 . Parts 61 | 7 37 16 . 1 . Haulers Intercepted 2 | . 2 . . . . Recyclers Shooed 2 | 1 1 . . . . Parts Field Recycled . | . . . . . . Retrieved Matter . | . . . . . . Parts Self-Destructed . | . . . . . . Prevented . | . . . . . . Kills | -11 -10 -10 -10 -9 -8 ------- Run | Jun Mat Min Exi Min Mat Combat Hostiles Destroyed 25 | . 12 11 . 2 . Guns 19 | . 12 5 . 2 . AOE 6 | . . 6 . . . Classes Destroyed 6 | 2 4 . . . . Tunneler 3 | 1 . 2 . . . Hauler 2 | . 2 . . . . Recycler 2 | 1 1 . . . . Watcher 1 | . 1 . . . . Swarmer 11 | . 2 9 . . . Grunt 14 | . 10 2 . 2 . Best Kill Streak 5 | 2 3 5 . 2 . Combat Bots Only 3 | . 3 3 . 2 . Max Kills in Single Turn 3 | 2 1 3 . 1 . Gunslinging . | . . . . . . Exploded 3 | . . 3 . . . Melee . | . . . . . . Uniques/NPCs Destroyed . | . . . . . . Combat | -11 -10 -10 -10 -9 -8 -------- Run | Jun Mat Min Exi Min Mat Damage Taken 1175 | . 691 300 . 184 . Core 205 | . 130 64 . 11 . Absorbed by Shields . | . . . . . . Core Remaining (%) 59 | 100 . . . 18 . Volleys Fired 86 | 5 58 17 . 6 . Largest 2 | 2 2 2 . 2 . Hottest 120 | 40 120 112 . 112 . Shots Fired 159 | 10 108 30 . 11 . Gun 145 | 10 99 26 . 10 . Cannon . | . . . . . . Launcher 5 | . . 4 . 1 . Special 9 | . 9 . . . . Kinetic 87 | 10 77 . . . . Thermal 57 | . 21 26 . 10 . Explosive 5 | . . 4 . 1 . Electromagnetic 10 | . 10 . . . . Robot Hit Streak 12 | 3 12 7 . 8 . Robot Miss Streak 3 | 2 3 2 . 1 . Penetration Max . | . . . . . . Secondary Targets 5 | . 2 2 . 1 . Max Gunslinging Chain 1 | . 1 1 . 1 . Shots Hit Robots 94 | 6 58 20 . 10 . Core Hits 52 | 3 30 15 . 4 . Critical Kills . | . . . . . . Critical Parts Destroyed . | . . . . . . Critical Strikes . | . . . . . . Melee Attacks 2 | . 2 . . . . Impact . | . . . . . . Slashing . | . . . . . . Piercing . | . . . . . . Sneak Attacks 2 | . 2 . . . . Combat Hostiles . | . . . . . . Follow-up Attacks . | . . . . . . Damage Inflicted 1783 | 77 788 706 . 212 . Guns 1155 | 77 683 262 . 133 . Cannons . | . . . . . . Explosions 628 | . 105 444 . 79 . Melee . | . . . . . . Ramming . | . . . . . . Kinetic 595 | 77 518 . . . . Thermal 602 | . 207 262 . 133 . Explosive 523 | . . 444 . 79 . Electromagnetic 63 | . 63 . . . . Impact . | . . . . . . Slashing . | . . . . . . Piercing . | . . . . . . Highest Corruption 4 | . 4 4 4 4 . Average Corruption 3 | . 3 4 4 4 . Corruption Purged . | . . . . . . Corruption Blocked . | . . . . . . Effects 38 | . 2 18 16 2 . Message Errors 6 | . . 3 2 1 . Matter Fused 9 | . . 5 4 . . Heat Flow Errors 4 | . . 2 1 1 . Energy Discharges 10 | . 1 5 4 . . Data Loss (minor) 3 | . . 1 2 . . Data Loss (major) 3 | . . 2 1 . . Alerts 3 | . 1 . 2 . . Overload Shots . | . . . . . . Overflow Damage 99 | . 82 16 . 1 . Projectiles . | . . . . . . Explosions 99 | . 82 16 . 1 . Melee . | . . . . . . Knockbacks . | . . . . . . Impact . | . . . . . . Kinetic . | . . . . . . Secondary . | . . . . . . Self-Inflicted Damage 173 | . 100 28 . 45 . Shots 3 | . 1 1 . 1 . Rammed . | . . . . . . Targets Rammed . | . . . . . . Kicked . | . . . . . . Crushed . | . . . . . . Highest Temperature 207 | . 153 207 112 96 . Average Temperature 47 | . 23 81 62 44 . Received Heat Transfer 420 | . 213 111 . 96 . Siege Activations . | . . . . . . Robots Corrupted . | . . . . . . Combat Hostiles . | . . . . . . Parts Fried . | . . . . . . Impact Corruptions . | . . . . . . Robots Melted . | . . . . . . Combat Hostiles . | . . . . . . Parts Melted . | . . . . . . Heat Transferred 1358 | . 359 666 . 333 . Parts Sabotaged . | . . . . . . Parts Stolen . | . . . . . . Parts Stripped . | . . . . . . Power Chain Reactions . | . . . . . . Missiles Intercepted . | . . . . . . Alert | -11 -10 -10 -10 -9 -8 ------- Run | Jun Mat Min Exi Min Mat Peak Influence 347 | 10 279 223 . 68 347 Initial 88 | . 6 88 . . 26 Average 108 | 7 126 111 . 60 88 Maximum Alert Level 1 | . 1 1 . . 1 Low Security (%) 73 | 100 71 66 . 100 81 Level 1 26 | . 28 33 . . 18 Level 2 . | . . . . . . Level 3 . | . . . . . . Level 4 . | . . . . . . Level 5 . | . . . . . . High Security . | . . . . . . Max Security . | . . . . . . Squads Dispatched 3 | . 3 . . . . Investigation 1 | . 1 . . . . Extermination . | . . . . . . Reinforcement 2 | . 2 . . . . Assault . | . . . . . . Garrison . | . . . . . . Intercept . | . . . . . . Searches Triggered . | . . . . . . Construction Impeded . | . . . . . . Haulers Reinforced . | . . . . . . Active Scanning Responses . | . . . . . . Cargo Convoy Interrupts . | . . . . . . Stealth | -11 -10 -10 -10 -9 -8 --------- Run | Jun Mat Min Exi Min Mat Distress Signals 2 | . 1 . . . 1 Communications Jammed . | . . . . . . Distress Signals . | . . . . . . Times Spotted 49 | . 24 11 . 2 12 Peak Tracking Total 6 | . 6 3 . 2 3 Tactical Retreats 4 | . 4 . . . . Traps | -11 -10 -10 -10 -9 -8 ------- Run | Jun Mat Min Exi Min Mat Traps Triggered 3 | . 3 . . . . Indirectly . | . . . . . . Trap Hack Attempts . | . . . . . . Triggered . | . . . . . . Disarmed . | . . . . . . Reprogrammed . | . . . . . . Reused . | . . . . . . Traps Extracted . | . . . . . . Installed . | . . . . . . Triggered . | . . . . . . Machines | -11 -10 -10 -10 -9 -8 ---------- Run | Jun Mat Min Exi Min Mat Machines Disabled 4 | . 1 2 . 1 . Max in Single Turn 2 | . 1 2 . 1 . Machines Repaired . | . . . . . . Machines Sabotaged . | . . . . . . Overloaded Fab Kills . | . . . . . . Hacking | -11 -10 -10 -10 -9 -8 --------- Run | Jun Mat Min Exi Min Mat Machines Accessed 9 | . 7 . . 1 1 Terminals 8 | . 6 . . 1 1 Fabricators . | . . . . . . Repair Stations . | . . . . . . Recycling Units 1 | . 1 . . . . Scanalyzers . | . . . . . . Garrison Access . | . . . . . . Total Hacks 26 | . 19 . . 5 2 Successful 14 | . 10 . . 3 1 Failed 12 | . 9 . . 2 1 Catastrophic 3 | . 3 . . . . Database Lockouts . | . . . . . . Manual 15 | . 11 . 1 1 2 Terminals 23 | . 16 . . 5 2 Fabricators . | . . . . . . Repair Stations . | . . . . . . Recycling Units 3 | . 3 . . . . Scanalyzers . | . . . . . . Garrison Access . | . . . . . . Terminal Hacks 6 | . 4 . . 2 . Record 2 | . . . . 2 . Locate Traps 2 | . 2 . . . . Transport Status 1 | . 1 . . . . Zone Layout 1 | . 1 . . . . Fabricator Hacks . | . . . . . . Repair Station Hacks . | . . . . . . Recycling Unit Hacks 2 | . 2 . . . . Report Inventory 1 | . 1 . . . . Retrieve Matter 1 | . 1 . . . . Scanalyzer . | . . . . . . Garrison Access Hacks . | . . . . . . Unauthorized Hacks 6 | . 4 . . 1 1 Terminals 6 | . 4 . . 1 1 Track 2 | . 1 . . 1 . Botnet 4 | . 3 . . . 1 Fabricators . | . . . . . . Repair Stations . | . . . . . . Recycling Units . | . . . . . . Scanalyzers . | . . . . . . Garrison Access . | . . . . . . Data Cores Recovered . | . . . . . . Used . | . . . . . . Hacking Detections 8 | . 6 . . 1 1 Full Trace Events . | . . . . . . Feedback Events . | . . . . . . Feedback Blocked . | . . . . . . Robot Schematics Acquired . | . . . . . . Robots Built . | . . . . . . Authchips . | . . . . . . Time . | . . . . . . Total Robot Build Rating . | . . . . . . Part Schematics Acquired . | . . . . . . Parts Built . | . . . . . . Authchips . | . . . . . . Time . | . . . . . . Total Part Build Rating . | . . . . . . Parts Repaired . | . . . . . . Time . | . . . . . . Parts Recycled . | . . . . . . Recycled Matter . | . . . . . . Retrieved Matter . | . . . . . . Retrieved Components . | . . . . . . Parts Scanalyzed . | . . . . . . Part Schematics Acquired . | . . . . . . Parts Damaged . | . . . . . . Bothacking | -11 -10 -10 -10 -9 -8 ------------ Run | Jun Mat Min Exi Min Mat Used RIF Installer . | . . . . . . Robots Hacked 1 | . 1 . . . . Non-combat 1 | . 1 . . . . Combat . | . . . . . . Robot Hacks Applied 2 | . 2 . . . . no_distress 1 | . 1 . . . . check_alert 1 | . 1 . . . . Relay Couplers Released . | . . . . . . Fabnet Peak Effective % . | . . . . . . Robots Rewired . | . . . . . . Allies Hacked . | . . . . . . Hacks Repelled . | . . . . . . Allies | -11 -10 -10 -10 -9 -8 -------- Run | Jun Mat Min Exi Min Mat Total Allies . | . . . . . . Largest Group . | . . . . . . Highest-Rated Group . | . . . . . . Highest-Rated Ally . | . . . . . . Total Orders 1 | . . . . . 1 RETURN 1 | . . . . . 1 Ally Attacks 71 | . . . . . 71 Total Damage 1162 | . . . . . 1162 Kills 19 | . . . . . 19 Allies Corrupted . | . . . . . . Allies Melted . | . . . . . . Intel | -11 -10 -10 -10 -9 -8 ------- Run | Jun Mat Min Exi Min Mat Robot Analysis Total . | . . . . . . Derelict Logs Recovered 2 | . . 1 . 1 . Drone Launches 55 | . . . . . 55 Drone Recoveries 25 | . . . . . 25 Exploration | -11 -10 -10 -10 -9 -8 ------------- Run | Jun Mat Min Exi Min Mat Turns Passed 3268 | 68 1098 871 606 107 518 Spaces Moved 1906 | 30 705 412 547 73 139 Core . | . . . . . . Treads 329 | 17 25 267 . 4 16 Legs . | . . . . . . Wheels 1577 | 13 680 145 547 69 123 Hover . | . . . . . . Flight . | . . . . . . Fastest Speed 80 | 95 95 110 110 110 80 Average Speed 140 | 131 117 197 110 117 225 Slowest Speed 320 | 160 240 240 110 240 320 Overloaded Moves . | . . . . . . Propulsion Burnouts . | . . . . . . Robots Hopped . | . . . . . . Cave-ins Triggered . | . . . . . . Exploration Rate (%) 50 | 3 96 83 90 15 18 Regions Visited 5 Branch Regions 3 Pre-discovered Areas . | . . . . . . Known Exits Taken . | . . . . . . Unknown Exits Taken 5 | 1 1 1 1 1 . Scrap Searched 1 | . . 1 . . . Spaces Dug 19 | . 8 11 . . . Terrain Destroyed 66 | . 23 32 . 11 . Melee . | . . . . . . Projectile 8 | . 8 . . . . AOE 58 | . 15 32 . 11 . Terrain Rammed . | . . . . . . Walls Destroyed . | . . . . . . Machines Disabled . | . . . . . . Actions | -11 -10 -10 -10 -9 -8 --------- Run | Jun Mat Min Exi Min Mat Total 2320 | 48 852 438 554 83 345 Wait 211 | . 20 1 . . 190 Move 1901 | 29 704 411 546 72 139 Hop . | . . . . . . Pick Up 28 | 3 17 1 1 1 5 Fast Attach 7 | . 5 . . . 2 Attach 10 | 1 4 1 . 4 . Detach 6 | . 3 1 2 . . Swap 39 | 6 24 6 . . 3 Drop 30 | 4 15 . 5 . 6 Fire 86 | 5 58 17 . 6 . Melee 2 | . 2 . . . . Ram . | . . . . . . Kick . | . . . . . . Crush . | . . . . . . Escape Stasis . | . . . . . . Rewire . | . . . . . . Trap . | . . . . . . Miscellaneous . | . . . . . . Route ------- -11/Junkyard -10/Materials (discovered 5 exits: [*Mat x3] / [*Min x2]) -10/Mines (discovered 3 exits: [*Mat x2] / *Exi) -10/Exiles -9/Mines -8/Materials History --------- Turn | Location | Event 22 | -11/Junkyard | Discovered new exit (range 3) 69 | -11/Junkyard | Entered Materials 266 | -10/Materials | Discovered new exit (range 8) 318 | -10/Materials | Build established: Mutant 741 | -10/Materials | Discovered new exit (range 7) 830 | -10/Materials | Core integrity fell below 50% 884 | -10/Materials | Discovered new exit (range 9) 1034 | -10/Materials | Discovered new exit (range 4) 1071 | -10/Materials | Discovered new exit (range 8) 1167 | -10/Materials | Entered Mines 1400 | -10/Mines | Learned Materials emergency access door positions 1466 | -10/Mines | Assembled infested the area 1604 | -10/Mines | Discovered new exit (range 8) 1611 | -10/Mines | Received a Rocket Launcher from a helpful Derelict 1948 | -10/Mines | Discovered new exit (range 14) 2032 | -10/Mines | Deemed a non-threat by the Exiles lab entrance 2033 | -10/Mines | Discovered new exit (range 5) 2038 | -10/Mines | Entered Exiles 2065 | -10/Exiles | Met 8R-AWN 2085 | -10/Exiles | Met EX-HEX 2142 | -10/Exiles | Met EX-DEC 2170 | -10/Exiles | Visited The Gauntlet 2382 | -10/Exiles | Discovered new exit (range 11) 2455 | -10/Exiles | Met EX-BIN 2473 | -10/Exiles | Aligned with FarCom system 2474 | -10/Exiles | Given EX-Vault access code 2508 | -10/Exiles | Opened EX-Vault 2534 | -10/Exiles | Found Prototype Device 2559 | -10/Exiles | Warned to stay clear of 0b10 Research branches 2644 | -10/Exiles | Left Exiles lab with Army-in-a-Box 2644 | -10/Exiles | Entered Mines 2646 | -9/Mines | Core integrity fell below 20% 2647 | -9/Mines | Met a Derelict bent on vengeance 2734 | -9/Mines | Discovered new exit (range 9) 2751 | -9/Mines | Entered Materials 2751 | -8/Materials | Evolved 4 slots: Utility x4 2753 | -8/Materials | Identified Army-in-a-Box 3269 | -8/Materials | Self-destructed Last Messages --------------- 03241_ K-01 Serf cleans the Processing Tank. 03245_ R-06 Scavenger collects Unknown Flight Unit. 03247_ K-01 Serf cleans the Processing Tank. 03248_ R-06 Scavenger collects Corrupted Lgt. Ion Engine. 03252_ A-02 Transporter destroyed. 03253_ R-06 Scavenger collects Unknown Flight Unit. 03254_ W-25 Informer destroyed. 03255_ Dropped Ion Engine. 03256_ R-06 Scavenger collects Unknown Flight Unit. 03257_ Chain reaction triggered in Lgt. Deuterium Engine. 03257_ Destroyed Imp. Hover Unit. 03257_ Army Drone destroyed. 03257_ W-25 Informer destroyed. 03260_ Acquired 10 matter. 03260_ R-06 Scavenger collects Transport Network Coupler. 03262_ U-05 Engineer builds a Wall. 03264_ R-06 Scavenger collects Corrupted Lgt. Treads. 03266_ U-05 Engineer lays Concrete. 03267_ U-05 Engineer builds a Wall. 03267_ R-06 Scavenger collects Prototype Hover Unit. Map ----- +----------------------------------------------------+ | ????????????????????????????????????????? | | ????????????????????????????????????????? | | ????????????????????????????????????????? | | ????????????????????????????????????????? | | ????????????????????????????????????????? | | ????????????????????????????????????????? | | ????????????????????????????????????????? | | ????????????????????????????????????????? | | ????????????????????????? ??????????????? | | ????????????????????????? ??????????????? | | ????????????????????????? ??????????????? | | ????????????????????????# ??????????????? | | ???????????????????????? ??????????????? | | ???????????????????????? #?????????????? | | ???????????????????????? r#?????????????? | | ???????????????????????? #?????????????? | | ????????????????????????#=#?????????????? | | ????????????????????????#%#?????????????? | | ????????????????????????#=#?????????????? | | ????????????????????????#=#?????????????? | | ???????????????????????##u##????????????? | | ?????????????????######## ##????????????? | | ?????????????????# ;!;#????????????? | | ?????????????????# !!] nn=#########????? | | ?????????????????# !! nnn% + # | | ?????????????????# !] n;@;;### ####????? | | ?????????????????# n#n###?# #???????? | | ?????????????????#= ! #n#???# #???????? | | ?????????????????########n#???# #???????? | | ???????????????????????##n##??# #???????? | | ???????????????????????##n##??# #???????? | | ???????????????????????##n#####/#####???? | | ???????????????????????##n#%=%= #???? | | ???????????????????????##n#%""" #???? | | ???????????????????????##n#|"T" #???? | | ???????????????????????##n# ! *#???? | | ????????????????????????#n###########???? | | ?????????????##+##??????#n#= #??????? | | ?????????????# ########n#n #??????? | | ????????????## %n%%=!*!nn= "" #??????? | | ????????????##[* ########[#! """ #??????? | | ????????????###%##??????#!# S" #??????? | | ??????????????#=##??????# # #??????? | | ??????????????#%#???#####+########??????? | | ?????????????? =#???# #??????????? | | ?????????????## #???# """"" #??????????? | | ??????????????# #???# """"" #??????????? | | ??????????????# #???# """"" #??????????? | | ??????????????# #???# #??????????? | | ??????????????? ????# """"" #??????????? | +----------------------------------------------------+ Best States ------------- Heat Dissipation 39 Energy Generation 14 Energy Capacity 250 Matter Stores 300 Matter Capacity 300 Sight Range 16 Terrain Scan Range 16 Terrain Scan Density 10 Armor Coverage 150 Evasion (%) 41 Targeting Accuracy 5 Recoil Reduction 2 Item Schematics ----------------- None Robot Schematics ------------------ None Fabricated ------------ Nothing Alien Tech Used ----------------- None Achievements -------------- Release The Drones! Challenges ------------ None Game ------ Seed ResetEncryptedSuperbattery Manual? 0 Play Time 00:39:20 Cumulative 6.4 hours Start 2023.11.03 @ 18:32:12 End 2023.11.03 @ 19:10:05 Sessions 1 Manual Loads 0 Difficulty Rogue Special Mode None Game No. 5 Rogue 4 Adventurer 1 Explorer 0 Win Type - Total 0 Types 0/0/0/0/0/0/0/0/0 Lore% 15 Gallery% 11 Achievement% 21 Wizard Run 0 Options --------- ASCII 0 Keyboard 0 Movement Numpad Keybinds 0 Fullscreen 1 Font 24/Smallcaps Map View 76x50 Tactical HUD 1 Map Filters NONE Filters NONE Steam 1 RUN: 8e1642d7-848b-4c4a-a376-45fd06a50054